fUSD/lending_fUSD_20260127
["ID","MTS","AMOUNT","RATE_DAILY","PERIOD"]
[403757302,1769522677468,-393.81654866,0.00043378,120]
[403757303,1769522677545,-500.0,0.00043378,120]
[403757304,1769522677621,-500.0,0.00043378,120]
[403757305,1769522677696,-500.0,0.00043378,120]
[403757306,1769522677773,-500.0,0.00043378,120]
[403757307,1769522677850,-500.0,0.00043378,120]
[403757308,1769522677927,-500.0,0.00043378,120]
[403757309,1769522678003,-500.0,0.00043378,120]
[403757310,1769522678079,-500.0,0.00043378,120]
[403757311,1769522678154,-507.32697942,0.00043378,120]
[403757312,1769522678231,-510.65691843,0.00043378,120]
[403757313,1769522678311,-500.0,0.00043378,30]
[403757314,1769522678389,-184.79,0.00043378,30]
[403757315,1769522678465,-534.72055439,0.00043378,120]
[403757316,1769522678539,-500.0,0.00043378,120]
[403757317,1769522678610,-500.0,0.00043378,120]
[403757318,1769522678687,-500.0,0.00043378,120]
[403757319,1769522678764,-512.52519335,0.00043378,120]
[403757320,1769522678842,-500.0,0.00043378,120]
[403757321,1769522678922,-500.0,0.00043378,120]
[403757322,1769522679002,-500.0,0.00043378,120]
[403757323,1769522679080,-500.0,0.00043378,120]
[403757324,1769522679159,-500.0,0.00043378,120]
[403757325,1769522679238,-500.0,0.00043378,120]
[403757326,1769522679319,-564.63,0.00043378,120]
[403757327,1769522679395,-500.0,0.00043378,120]
[403757328,1769522679731,-541.89,0.00043378,120]
[403757329,1769522679809,-635.36,0.00043378,120]
[403757330,1769522679888,-500.0,0.00043378,120]
[403757331,1769522679968,-505.61913648,0.00043378,120]
[403757332,1769522680047,-500.0,0.00043378,120]
[403757333,1769522680123,-307.46,0.00043378,120]
[403757334,1769522680198,-500.0,0.00043378,120]
[403757335,1769522680274,-571.99,0.00043378,120]
[403757336,1769522680351,-500.0,0.00043378,120]
[403757337,1769522680430,-500.0,0.00043378,120]
[403757338,1769522680506,-564.01161158,0.00043378,120]
[403757339,1769522680582,-500.0,0.00043378,120]
[403757340,1769522680658,-500.0,0.00043378,120]
[403757341,1769522680736,-161.88,0.00043378,120]
[403757342,1769522680811,-500.0,0.00043378,120]
[403757343,1769522680889,-500.0,0.00043378,120]
[403757344,1769522680968,-500.0,0.00043378,120]
[403757345,1769522681046,-508.00879657,0.00043378,120]
[403757346,1769522681125,-500.0,0.00043378,120]
[403757347,1769522681202,-500.0,0.00043378,120]
[403757348,1769522681278,-500.0,0.00043378,120]
[403757349,1769522681353,-500.0,0.00043378,120]
[403757350,1769522681428,-630.17712655,0.00043378,120]
[403757351,1769522681507,-530.68,0.00043378,120]
[403757352,1769522681582,-538.71498107,0.00043378,120]
[403757353,1769522681658,-196.6144312,0.00043378,120]
[403757354,1769522681735,-196.6144312,0.00043378,120]
[403757355,1769522681814,-645.88342547,0.00043378,120]
[403757356,1769522681894,-500.0,0.00043378,120]
[403757357,1769522681971,-196.6144312,0.00043378,120]
[403757358,1769522682050,-520.80050675,0.00043378,120]
[403757359,1769522682132,-645.88342547,0.00043378,120]
[403757360,1769522682211,-500.0,0.00043378,120]
[403757361,1769522682294,-504.05289457,0.00043378,120]
[403757362,1769522682372,-196.6144312,0.00043378,120]
[403757363,1769522682455,-645.88342547,0.00043378,120]
[403757364,1769522682533,-196.6144312,0.00043378,120]
[403757365,1769522682609,-645.88342547,0.00043378,120]
[403757366,1769522682687,-514.37866007,0.00043378,120]
[403757367,1769522682766,-196.6144312,0.00043378,120]
[403757368,1769522682858,-645.88342547,0.00043378,120]
[403757369,1769522682942,-196.6144312,0.00043378,120]
[403757370,1769522683025,-645.88342547,0.00043378,120]
[403757371,1769522683104,-196.6144312,0.00043378,120]
[403757372,1769522683184,-645.88342547,0.00043378,120]
[403757373,1769522683262,-500.0,0.00043378,120]
[403757374,1769522683341,-645.88342547,0.00043378,120]
[403757375,1769522683420,-414.49300115,0.00043378,120]
[403757376,1769522683499,-509.63075895,0.00043378,120]
[403757377,1769522683583,-645.88342547,0.00043378,120]
[403757378,1769522683661,-500.0,0.00043378,120]
[403757379,1769522683736,-645.88342547,0.00043378,120]
[403757380,1769522683813,-645.88342547,0.00043378,120]
[403757381,1769522683894,-500.0,0.00043378,120]
[403757382,1769522683975,-645.88342547,0.00043378,120]
[403757383,1769522684057,-500.0,0.00043378,120]
[403757384,1769522684141,-508.09464507,0.00043378,120]
[403757385,1769522684217,-645.88342547,0.00043378,120]
[403757386,1769522684295,-645.88342547,0.00043378,120]
[403757387,1769522684372,-500.0,0.00043378,120]
[403757388,1769522684450,-645.88342547,0.00043378,120]
[403757389,1769522684526,-645.88342547,0.00043378,120]
[403757390,1769522684601,-500.0,0.00043378,120]
[403757391,1769522684678,-645.88342547,0.00043378,120]
[403757392,1769522684755,-500.0,0.00043378,120]
[403757393,1769522684834,-645.88342547,0.00043378,120]
[403757394,1769522684914,-513.28,0.00043378,30]
[403757395,1769522684995,-645.88342547,0.00043378,120]
[403757396,1769522685075,-645.88342547,0.00043378,120]
[403757397,1769522685152,-500.0,0.00043378,120]
[403757398,1769522685230,-530.08,0.00043378,120]
[403757399,1769522685309,-645.88342547,0.00043378,120]
[403757400,1769522685395,-532.35161392,0.00043378,120]
[403757401,1769522685475,-645.88342547,0.00043378,120]
[403757402,1769522685554,-500.0,0.00043378,120]
[403757403,1769522685632,-500.0,0.00043378,120]
[403757404,1769522685711,-645.88342547,0.00043378,120]
[403757405,1769522685791,-500.0,0.00043378,120]
[403757406,1769522685872,-645.88342547,0.00043378,120]
[403757407,1769522685952,-645.88342547,0.00043378,120]
[403757408,1769522686032,-500.0,0.00043378,120]
[403757409,1769522686115,-645.88342547,0.00043378,120]
[403757410,1769522686196,-514.63198068,0.00043378,120]
[403757411,1769522686278,-645.88342547,0.00043378,120]
[403757412,1769522686359,-500.0,0.00043378,120]
[403757413,1769522686439,-645.88342547,0.00043378,120]
[403757414,1769522686520,-512.89460457,0.00043378,120]
[403757415,1769522686601,-500.0,0.00043378,120]
[403757416,1769522686680,-645.88342547,0.00043378,120]
[403757417,1769522686760,-645.88342547,0.00043378,120]
[403757418,1769522686843,-500.0,0.00043378,120]
[403757419,1769522686924,-500.0,0.00043378,120]
[403757420,1769522687004,-500.0,0.00043378,120]
[403757421,1769522687086,-513.93914392,0.00043378,120]
[403757422,1769522687166,-500.0,0.00043378,120]
[403757423,1769522687729,-500.0,0.00043378,120]
[403757424,1769522687816,-550.84211377,0.00043378,120]
[403757425,1769522687903,-500.0,0.00043378,120]
[403757426,1769522687987,-500.0,0.00043378,120]
[403757427,1769522688071,-500.0,0.00043378,120]
[403757428,1769522688158,-179.67797355,0.00043378,120]
[403757429,1769522688240,-500.0,0.00043378,120]
[403757430,1769522688335,-512.42687272,0.00043378,120]
[403757431,1769522688420,-500.0,0.00043378,120]
[403757432,1769522688502,-510.85367174,0.00043378,120]
[403757433,1769522688584,-500.0,0.00043378,120]
[403757434,1769522688665,-500.0,0.00043378,120]
[403757435,1769522688748,-505.54116165,0.00043378,120]
[403757436,1769522688830,-500.0,0.00043378,120]
[403757437,1769522688911,-500.0,0.00043378,120]
[403757438,1769522688995,-508.41655411,0.00043378,120]
[403757439,1769522689079,-500.0,0.00043378,120]
[403757440,1769522689163,-500.0,0.00043378,120]
[403757441,1769522689247,-504.86484963,0.00043378,120]
[403757442,1769522689330,-500.0,0.00043378,120]
[403757443,1769522689414,-500.0,0.00043378,120]
[403757444,1769522689498,-500.0,0.00043378,120]
[403757445,1769522689580,-500.0,0.00043378,120]
[403757446,1769522689662,-500.0,0.00043378,120]
[403757447,1769522689744,-173.87541658,0.00043378,120]
[403757448,1769522689825,-500.0,0.00043378,120]
[403757449,1769522689907,-504.31303899,0.00043378,120]
[403757450,1769522689991,-504.02644454,0.00043378,120]
[403757451,1769522690075,-645.88,0.00043378,120]
[403757452,1769522690156,-500.0,0.00043378,120]
[403757453,1769522690238,-500.0,0.00043378,120]
[403757454,1769522690320,-500.0,0.00043378,120]
[403757455,1769522690404,-500.0,0.00043378,120]
[403757456,1769522690488,-506.89902523,0.00043378,120]
[403757457,1769522690569,-500.0,0.00043378,120]
[403757458,1769522690650,-516.75719208,0.00043378,120]
[403757459,1769522690733,-500.0,0.00043378,120]
[403757460,1769522690817,-500.0,0.00043378,120]
[403757461,1769522690901,-500.0,0.00043378,120]
[403757462,1769522690986,-506.04679029,0.00043378,120]
[403757463,1769522691069,-500.0,0.00043378,120]
[403757464,1769522691151,-500.0,0.00043378,120]
[403757465,1769522691234,-500.0,0.00043378,120]
[403757466,1769522691317,-576.54,0.00043378,120]
[403757467,1769522691401,-500.0,0.00043378,120]
[403757468,1769522691483,-503.25675932,0.00043378,120]
[403757469,1769522691564,-500.0,0.00043378,120]
[403757470,1769522691642,-500.0,0.00043378,120]
[403757471,1769522691720,-504.87499501,0.00043378,120]
[403757472,1769522691800,-500.0,0.00043378,120]
[403757473,1769522691880,-500.0,0.00043378,120]
[403757474,1769522691959,-591.7665007,0.00043378,120]
[403757475,1769522692036,-507.67519651,0.00043378,120]
[403757476,1769522692114,-500.0,0.00043378,120]
[403757477,1769522692190,-500.0,0.00043378,120]
[403757478,1769522692265,-537.47963004,0.00043378,120]
[403757479,1769522692340,-516.61,0.00043378,120]
[403757480,1769522692413,-500.0,0.00043378,120]
[403757481,1769522692489,-574.76,0.00043378,120]
[403757482,1769522692561,-500.0,0.00043378,120]
[403757483,1769522692636,-500.0,0.00043378,120]
[403757484,1769522692709,-512.96298137,0.00043378,120]
[403757485,1769522692784,-500.0,0.00043378,120]
[403757486,1769522692861,-521.60627733,0.00043378,120]
[403757487,1769522692941,-500.0,0.00043378,120]
[403757488,1769522693021,-500.0,0.00043378,120]
[403757489,1769522693099,-529.27036071,0.00043378,120]
[403757490,1769522693176,-268.18935699,0.00043378,120]
[403757491,1769522693256,-529.02634133,0.00043378,120]
[403757492,1769522693335,-175.01990281,0.00043378,120]
[403757493,1769522693416,-500.0,0.00043378,120]
[403757494,1769522693495,-512.670852,0.00043378,120]
[403757495,1769522693572,-500.0,0.00043378,120]
[403757496,1769522693648,-500.0,0.00043378,120]
[403757497,1769522693727,-500.0,0.00043378,120]
[403757498,1769522693804,-500.0,0.00043378,120]
[403757499,1769522693884,-500.0,0.00043378,120]
[403757500,1769522693965,-502.7330263,0.00043378,120]
[403757501,1769522694045,-500.0,0.00043378,120]
[403757502,1769522694126,-500.0,0.00043378,120]
[403757503,1769522694206,-500.0,0.00043378,120]
[403757504,1769522694286,-500.0,0.00043378,120]
[403757505,1769522694367,-500.0,0.00043378,120]
[403757506,1769522694448,-289.75,0.00043378,120]
[403757507,1769522694529,-500.0,0.00043378,120]
[403757508,1769522694610,-500.0,0.00043378,120]
[403757509,1769522694686,-500.0,0.00043378,120]
[403757510,1769522694764,-500.0,0.00043378,120]
[403757511,1769522694841,-189.93,0.00043378,120]
[403757512,1769522694920,-500.0,0.00043378,120]
[403757513,1769522695000,-500.0,0.00043378,120]
[403757514,1769522695079,-500.0,0.00043378,120]
[403757515,1769522695161,-500.0,0.00043378,120]
[403757516,1769522695244,-572.93045378,0.00043378,120]
[403757517,1769522695610,-500.0,0.00043378,120]
[403757518,1769522695693,-178.75,0.00043378,120]
[403757519,1769522695776,-500.0,0.00043378,120]
[403757520,1769522695859,-500.0,0.00043378,120]
[403757521,1769522695949,-500.0,0.00043378,120]
[403757522,1769522696032,-500.0,0.00043378,120]
[403757523,1769522696113,-500.0,0.00043378,120]
[403757524,1769522696194,-500.0,0.00043378,120]
[403757525,1769522696277,-500.0,0.00043378,120]
[403757526,1769522696361,-500.0,0.00043378,120]
[403757527,1769522696443,-514.71207911,0.00043378,120]
[403757528,1769522696528,-500.0,0.00043378,120]
[403757529,1769522696615,-500.0,0.00043378,120]
[403757530,1769522696701,-500.0,0.00043378,120]
[403757531,1769522696785,-500.0,0.00043378,120]
[403757532,1769522696872,-504.50028818,0.00043378,120]
[403757533,1769522696959,-525.07454717,0.00043378,120]
[403757534,1769522697043,-317.0774528,0.00043378,120]
[403757535,1769522697125,-500.0,0.00043378,120]
[403757536,1769522697207,-500.0,0.00043378,120]
[403757537,1769522697288,-500.0,0.00043378,120]
[403757538,1769522697369,-505.37393283,0.00043378,120]
[403757539,1769522697450,-500.0,0.00043378,120]
[403757540,1769522697529,-500.0,0.00043378,120]
[403757541,1769522697609,-500.0,0.00043378,120]
[403757542,1769522697689,-500.0,0.00043378,60]
[403757543,1769522697771,-500.0,0.00043378,120]
[403757544,1769522697853,-457.99854961,0.00043378,120]
[403757545,1769522697937,-558.06,0.00043378,120]
[403757546,1769522698026,-198.16240838,0.00043378,120]
[403757547,1769522698110,-500.0,0.00043378,120]
[403757548,1769522698195,-500.0,0.00043378,120]
[403757549,1769522698277,-648.59136501,0.00043378,120]
[403757550,1769522698360,-500.0,0.00043378,120]
[403757551,1769522698444,-500.0,0.00043378,120]
[403757552,1769522698529,-213.9,0.00043378,120]
[403757553,1769522698615,-530.32513828,0.00043378,120]
[403757554,1769522698695,-500.0,0.00043378,120]
[403757555,1769522698778,-500.0,0.00043378,120]
[403757556,1769522698863,-500.0,0.00043378,120]
[403757557,1769522698948,-500.0,0.00043378,120]
[403757558,1769522699030,-500.0,0.00043378,120]
[403757559,1769522699112,-500.0,0.00043378,120]
[403757560,1769522699193,-580.96499676,0.00043378,120]
[403757561,1769522699275,-500.0,0.00043378,120]
[403757562,1769522699357,-500.0,0.00043378,120]
[403757563,1769522699436,-500.0,0.00043378,120]
[403757564,1769522699514,-500.0,0.00043378,120]
[403757565,1769522699590,-500.0,0.00043378,120]
[403757566,1769522699668,-500.0,0.00043378,120]
[403757567,1769522699748,-500.0,0.00043378,120]
[403757568,1769522699834,-500.0,0.00043378,120]
[403757569,1769522699921,-500.0,0.00043378,120]
[403757570,1769522700002,-500.0,0.00043378,120]
[403757571,1769522700088,-518.02288487,0.00043378,120]
[403757572,1769522700175,-500.0,0.00043378,120]
[403757573,1769522700267,-500.0,0.00043378,120]
[403757574,1769522700356,-500.0,0.00043378,120]
[403757575,1769522700443,-229.78,0.00043378,120]
[403757576,1769522700526,-210.76171935,0.00043378,120]
[403757577,1769522700611,-500.0,0.00043378,120]
[403757578,1769522700689,-500.0,0.00043378,120]
[403757579,1769522700769,-258.48,0.00043378,120]
[403757580,1769522700847,-500.0,0.00043378,120]
[403757581,1769522700927,-500.0,0.00043378,120]
[403757582,1769522701006,-504.82799295,0.00043378,120]
[403757583,1769522701085,-500.0,0.00043378,120]
[403757584,1769522701164,-500.0,0.00043378,120]
[403757585,1769522701246,-500.0,0.00043378,120]
[403757586,1769522701324,-500.0,0.00043378,120]
[403757587,1769522701402,-500.0,0.00043378,120]
[403757588,1769522701483,-500.0,0.00043378,120]
[403757589,1769522701560,-500.0,0.00043378,120]
[403757590,1769522701638,-500.0,0.00043378,120]
[403757591,1769522701720,-500.0,0.00043378,120]
[403757592,1769522701802,-500.0,0.00043378,120]
[403757593,1769522701887,-500.0,0.00043378,120]
[403757594,1769522701968,-500.0,0.00043378,120]
[403757595,1769522702052,-510.98792448,0.00043378,120]
[403757596,1769522702131,-502.41209435,0.00043378,120]
[403757597,1769522702212,-500.0,0.00043378,120]
[403757598,1769522702290,-500.0,0.00043378,120]
[403757599,1769522702372,-500.0,0.00043378,120]
[403757600,1769522702454,-500.0,0.00043378,120]
[403757601,1769522702536,-500.0,0.00043378,120]
[403757602,1769522702616,-500.0,0.00043378,120]
[403757603,1769522702694,-153.23,0.00043378,120]
[403757604,1769522702771,-507.87939913,0.00043378,120]
[403757605,1769522702848,-500.0,0.00043378,120]
[403757606,1769522702927,-552.03,0.00043378,120]
[403757607,1769522703006,-500.0,0.00043378,120]
[403757608,1769522703098,-500.0,0.00043378,120]
[403757609,1769522703197,-500.0,0.00043378,120]
[403757610,1769522703288,-500.0,0.00043378,120]
[403757611,1769522703778,-554.66,0.00043378,120]
[403757612,1769522703888,-500.0,0.00043378,120]
[403757613,1769522703978,-500.0,0.00043378,120]
[403757614,1769522704069,-500.0,0.00043378,120]
[403757615,1769522704158,-500.0,0.00043378,120]
[403757616,1769522704248,-618.36317381,0.00043378,120]
[403757617,1769522704338,-517.19,0.00043378,120]
[403757618,1769522704430,-500.0,0.00043378,120]
[403757619,1769522704521,-500.0,0.00043378,120]
[403757620,1769522704610,-500.0,0.00043378,120]
[403757621,1769522704699,-500.0,0.00043378,120]
[403757622,1769522704789,-500.0,0.00043378,120]
[403757623,1769522704882,-504.33246031,0.00043378,120]
[403757624,1769522704978,-500.0,0.00043378,120]
[403757625,1769522705071,-279.47,0.00043378,120]
[403757626,1769522705176,-500.0,0.00043378,120]
[403757627,1769522705267,-500.0,0.00043378,120]
[403757628,1769522705358,-500.0,0.00043378,120]
[403757629,1769522705452,-500.0,0.00043378,120]
[403757630,1769522705541,-522.70213123,0.00043378,120]
[403757631,1769522705629,-506.20579636,0.00043378,120]
[403757632,1769522705717,-500.0,0.00043378,120]
[403757633,1769522705808,-500.0,0.00043378,120]
[403757634,1769522705901,-500.0,0.00043378,120]
[403757635,1769522705995,-504.69105051,0.00043378,120]
[403757636,1769522706089,-500.0,0.00043378,120]
[403757637,1769522706182,-500.0,0.00043378,120]
[403757638,1769522706276,-515.28263647,0.00043378,120]
[403757639,1769522706367,-500.0,0.00043378,120]
[403757640,1769522706457,-500.0,0.00043378,120]
[403757641,1769522706547,-500.0,0.00043378,120]
[403757642,1769522706638,-265.21258199,0.00043378,120]
[403757643,1769522706730,-518.36265004,0.00043378,120]
[403757644,1769522706821,-532.71,0.00043378,120]
[403757645,1769522706911,-500.0,0.00043378,120]
[403757646,1769522707004,-522.65420689,0.00043378,120]
[403757647,1769522707097,-543.6810454,0.00043378,120]
[403757648,1769522707186,-500.0,0.00043378,120]
[403757649,1769522707275,-500.0,0.00043378,120]
[403757650,1769522707364,-500.0,0.00043378,120]
[403757651,1769522707455,-500.0,0.00043378,120]
[403757652,1769522707546,-635.83763538,0.00043378,120]
[403757653,1769522707636,-212.5,0.00043378,120]
[403757654,1769522707730,-500.0,0.00043378,120]
[403757655,1769522707818,-500.0,0.00043378,120]
[403757656,1769522707908,-407.97347204,0.00043378,120]
[403757657,1769522707996,-500.0,0.00043378,120]
[403757658,1769522708087,-500.0,0.00043378,120]
[403757659,1769522708177,-514.41424084,0.00043378,120]
[403757660,1769522708265,-500.0,0.00043378,120]
[403757661,1769522708355,-563.93262075,0.00043378,120]
[403757662,1769522708444,-500.0,0.00043378,120]
[403757663,1769522708531,-500.0,0.00043378,120]
[403757664,1769522708619,-206.08,0.00043378,120]
[403757665,1769522708708,-191.01827277,0.00043378,120]
[403757666,1769522708797,-530.42,0.00043378,120]
[403757667,1769522708886,-500.0,0.00043378,120]
[403757668,1769522708976,-500.0,0.00043378,120]
[403757669,1769522709068,-500.0,0.00043378,120]
[403757670,1769522709155,-500.0,0.00043378,120]
[403757671,1769522709242,-507.17253567,0.00043378,120]
[403757672,1769522709330,-505.68967548,0.00043378,120]
[403757673,1769522709417,-500.0,0.00043378,120]
[403757674,1769522709505,-500.0,0.00043378,120]
[403757675,1769522709592,-493.69147354,0.00043378,120]
[403757676,1769522709682,-500.0,0.00043378,120]
[403757677,1769522709769,-164.42,0.00043378,120]
[403757678,1769522709859,-500.0,0.00043378,120]
[403757679,1769522709953,-608.92,0.00043378,120]
[403757680,1769522710041,-519.91113284,0.00043378,120]
[403757681,1769522710129,-500.0,0.00043378,120]
[403757682,1769522710219,-516.26419092,0.00043378,120]
[403757683,1769522710309,-500.0,0.00043378,120]
[403757684,1769522710398,-500.0,0.00043378,120]
[403757685,1769522710486,-513.40621369,0.00043378,120]
[403757686,1769522710576,-500.0,0.00043378,120]
[403757687,1769522710667,-516.32852486,0.00043378,120]
[403757688,1769522710757,-500.0,0.00043378,120]
[403757689,1769522710848,-633.08471745,0.00043378,120]
[403757690,1769522710936,-500.0,0.00043378,120]
[403757691,1769522711029,-500.0,0.00043378,120]
[403757692,1769522711118,-500.0,0.00043378,120]
[403757693,1769522711205,-500.0,0.00043378,120]
[403757694,1769522711294,-500.0,0.00043378,120]
[403757695,1769522711384,-157.94,0.00043378,120]
[403757696,1769522711470,-206.72042357,0.00043378,120]
[403757697,1769522711556,-500.0,0.00043378,120]
[403757698,1769522711642,-500.0,0.00043378,120]
[403757699,1769522711728,-514.87144914,0.00043378,120]
[403757700,1769522711817,-500.0,0.00043378,120]
[403757701,1769522711905,-500.0,0.00043378,120]
[403757702,1769522711998,-500.0,0.00043378,120]
[403757703,1769522712087,-331.18,0.00043378,120]
[403757704,1769522712177,-500.0,0.00043378,120]
[403757705,1769522712266,-517.48146727,0.00043378,120]
[403757706,1769522712654,-500.0,0.00043378,120]
[403757707,1769522712744,-500.0,0.00043378,120]
[403757708,1769522712832,-500.0,0.00043378,120]
[403757709,1769522712919,-510.78612401,0.00043378,120]
[403757710,1769522713008,-184.1,0.00043378,120]
[403757711,1769522713099,-283.58,0.00043378,120]
[403757712,1769522713186,-500.0,0.00043378,120]
[403757713,1769522713275,-500.0,0.00043378,120]
[403757714,1769522713361,-500.0,0.00043378,120]
[403757715,1769522713450,-504.91893348,0.00043378,120]
[403757716,1769522713538,-500.0,0.00043378,120]
[403757717,1769522713627,-500.0,0.00043378,120]
[403757718,1769522713719,-500.0,0.00043378,120]
[403757719,1769522713811,-500.0,0.00043378,120]
[403757720,1769522713899,-506.98432828,0.00043378,120]
[403757721,1769522713988,-511.64257913,0.00043378,120]
[403757722,1769522714080,-523.08360949,0.00043378,120]
[403757723,1769522714170,-587.37,0.00043378,120]
[403757724,1769522714258,-500.0,0.00043378,120]
[403757725,1769522714347,-500.0,0.00043378,60]
[403757726,1769522714435,-513.666709,0.00043378,120]
[403757727,1769522714523,-500.0,0.00043378,120]
[403757728,1769522714613,-600.48576412,0.00043378,120]
[403757729,1769522714703,-500.0,0.00043378,120]
[403757730,1769522714793,-500.0,0.00043378,120]
[403757731,1769522714882,-500.0,0.00043378,120]
[403757732,1769522714974,-217.59,0.00043378,120]
[403757733,1769522715063,-500.0,0.00043378,120]
[403757734,1769522715150,-511.18414412,0.00043378,120]
[403757735,1769522715238,-500.0,0.00043378,120]
[403757736,1769522715330,-500.0,0.00043378,120]
[403757737,1769522715420,-224.12,0.00043378,120]
[403757738,1769522715511,-503.49232398,0.00043378,120]
[403757739,1769522715603,-500.0,0.00043378,120]
[403757740,1769522715693,-508.63108217,0.00043378,120]
[403757741,1769522715782,-500.0,0.00043378,120]
[403757742,1769522715871,-500.0,0.00043378,120]
[403757743,1769522715960,-607.91,0.00043378,120]
[403757744,1769522716053,-500.0,0.00043378,120]
[403757745,1769522716141,-522.25082932,0.00043378,120]
[403757746,1769522716227,-500.0,0.00043378,120]
[403757747,1769522716315,-502.89899828,0.00043378,120]
[403757748,1769522716405,-500.0,0.00043378,120]
[403757749,1769522716493,-500.0,0.00043378,120]
[403757750,1769522716581,-500.0,0.00043378,120]
[403757751,1769522716670,-500.0,0.00043378,120]
[403757752,1769522716758,-500.0,0.00043378,120]
[403757753,1769522716845,-512.67501253,0.00043378,120]
[403757754,1769522716932,-500.0,0.00043378,120]
[403757755,1769522717022,-600.33,0.00043378,120]
[403757756,1769522717110,-509.25638236,0.00043378,120]
[403757757,1769522717196,-500.0,0.00043378,120]
[403757758,1769522717282,-500.0,0.00043378,120]
[403757759,1769522717369,-500.0,0.00043378,120]
[403757760,1769522717457,-500.0,0.00043378,120]
[403757761,1769522717543,-500.0,0.00043378,120]
[403757762,1769522717628,-500.0,0.00043378,120]
[403757763,1769522717718,-500.0,0.00043378,120]
[403757764,1769522717808,-508.86116151,0.00043378,120]
[403757765,1769522717896,-500.0,0.00043378,120]
[403757766,1769522717985,-500.0,0.00043378,120]
[403757767,1769522718079,-602.81,0.00043378,120]
[403757768,1769522718166,-500.0,0.00043378,30]
[403757769,1769522718254,-500.0,0.00043378,120]
[403757770,1769522718342,-504.25590701,0.00043378,30]
[403757771,1769522718431,-500.0,0.00043378,120]
[403757772,1769522718520,-500.0,0.00043378,120]
[403757773,1769522718606,-500.0,0.00043378,120]
[403757774,1769522718696,-330.17,0.00043378,120]
[403757775,1769522718790,-500.0,0.00043378,120]
[403757776,1769522718890,-500.0,0.00043378,120]
[403757777,1769522718977,-500.0,0.00043378,120]
[403757778,1769522719069,-500.0,0.00043378,120]
[403757779,1769522719157,-534.85566973,0.00043378,120]
[403757780,1769522719246,-524.8,0.00043378,120]
[403757781,1769522719332,-500.0,0.00043378,120]
[403757782,1769522719418,-509.7755782,0.00043378,120]
[403757783,1769522719504,-771.36,0.00043378,120]
[403757784,1769522719589,-771.36,0.00043378,120]
[403757785,1769522719676,-771.36,0.00043378,120]
[403757786,1769522719762,-771.36,0.00043378,120]
[403757787,1769522719851,-500.0,0.00043378,120]
[403757788,1769522719941,-771.36,0.00043378,120]
[403757789,1769522720032,-500.0,0.00043378,120]
[403757790,1769522720120,-500.0,0.00043378,120]
[403757791,1769522720208,-771.36,0.00043378,120]
[403757792,1769522720295,-165.97,0.00043378,120]
[403757793,1769522720383,-771.36,0.00043378,120]
[403757794,1769522720471,-771.36,0.00043378,120]
[403757795,1769522720558,-526.78,0.00043378,120]
[403757796,1769522720651,-771.36,0.00043378,120]
[403757797,1769522720739,-771.36,0.00043378,120]
[403757798,1769522720827,-500.0,0.00043378,120]
[403757799,1769522720916,-771.36,0.00043378,120]
[403757800,1769522721002,-515.50155249,0.00043378,120]
[403757801,1769522721438,-623.98,0.00043378,120]